[Event "Titled Tuesday Blitz February 07 Late 2023"]
[White "Aggelis, Nikolaos"]
[Black "Remolar Gallen, Jose"]
[WhiteFideId "4213220"]
[BlackFideId "2215187"]
[WhiteElo "2270"]
[BlackElo "2285"]
[Result "0-1"]
[Round "10"]
[TimeControl "180+2"]
[Date "2023.02.07"]
[WhiteClock "0:01:00"]
[BlackClock "0:00:05"]

1. d4 {[%clk 0:02:58]}  Nf6 {[%clk 0:02:59]} 2. g3 {[%clk 0:02:59]}  g6 {[%clk 0:02:59]} 3. Bg2 {[%clk 0:03:00]}  Bg7 {[%clk 0:02:59]} 4. Nf3 {[%clk 0:03:00]}  O-O {[%clk 0:02:59]} 5. O-O {[%clk 0:03:01]}  d6 {[%clk 0:03:00]} 6. b3 {[%clk 0:03:02]}  a5 {[%clk 0:03:00]} 7. a4 {[%clk 0:03:01]}  Na6 {[%clk 0:02:53]} 8. Bb2 {[%clk 0:03:00]}  Ne4 {[%clk 0:02:47]} 9. Nbd2 {[%clk 0:03:00]}  f5 {[%clk 0:02:44]} 10. Ne1 {[%clk 0:02:43]}  d5 {[%clk 0:02:34]} 11. Nd3 {[%clk 0:02:39]}  Nb4 {[%clk 0:02:32]} 12. Nf3 {[%clk 0:02:33]}  b6 {[%clk 0:02:14]} 13. Ba3 {[%clk 0:02:25]}  c5 {[%clk 0:02:08]} 14. e3 {[%clk 0:02:19]}  Ba6 {[%clk 0:02:03]} 15. Re1 {[%clk 0:02:09]}  Rc8 {[%clk 0:01:49]} 16. Nfe5 {[%clk 0:01:57]}  cxd4 {[%clk 0:00:52]} 17. Bxb4 {[%clk 0:01:54]}  dxe3 {[%clk 0:00:49]} 18. Bxe4 {[%clk 0:01:20]}  fxe4 {[%clk 0:00:39]} 19. Ba3 {[%clk 0:01:05]}  exd3 {[%clk 0:00:35]} 20. Rxe3 {[%clk 0:01:03]}  dxc2 {[%clk 0:00:33]} 21. Qd2 {[%clk 0:01:03]}  d4 {[%clk 0:00:15]} 22. Re4 {[%clk 0:01:01]}  Qd5 {[%clk 0:00:08]} 23. Rae1 {[%clk 0:01:01]}  Bb7 {[%clk 0:00:06]} 24. f3 {[%clk 0:00:59]}  Bxe5 {[%clk 0:00:05]} 25. Rxe5 {[%clk 0:01:00]}  Qxf3 {[%clk 0:00:05]} 0-1


[Site "https://www.chess.com"]

[Event "Titled Tuesday Blitz February 07 Late 2023"]
[White "Kavutskiy, Konstantin"]
[Black "Carrasco Miranda, Andres"]
[WhiteFideId "2026384"]
[BlackFideId "3405990"]
[WhiteElo "2414"]
[BlackElo "2240"]
[Result "0-1"]
[Round "10"]
[TimeControl "180+2"]
[Date "2023.02.07"]
[WhiteClock "0:00:03"]
[BlackClock "0:00:35"]

1. d4 {[%clk 0:03:00]}  Nf6 {[%clk 0:02:58]} 2. Bg5 {[%clk 0:03:00]}  Ne4 {[%clk 0:02:58]} 3. Bf4 {[%clk 0:03:00]}  c5 {[%clk 0:02:58]} 4. f3 {[%clk 0:02:56]}  Nf6 {[%clk 0:02:58]} 5. dxc5 {[%clk 0:02:53]}  b6 {[%clk 0:02:58]} 6. cxb6 {[%clk 0:02:42]}  Qxb6 {[%clk 0:02:58]} 7. Qc1 {[%clk 0:02:41]}  d5 {[%clk 0:02:56]} 8. Nc3 {[%clk 0:02:36]}  g6 {[%clk 0:02:53]} 9. e3 {[%clk 0:02:24]}  Bg7 {[%clk 0:02:52]} 10. Bb5+ {[%clk 0:02:24]}  Nbd7 {[%clk 0:02:49]} 11. Nge2 {[%clk 0:02:22]}  O-O {[%clk 0:02:48]} 12. Bxd7 {[%clk 0:02:17]}  Bxd7 {[%clk 0:02:46]} 13. Be5 {[%clk 0:02:14]}  Rac8 {[%clk 0:02:34]} 14. O-O {[%clk 0:02:05]}  Bh6 {[%clk 0:02:29]} 15. Bd4 {[%clk 0:01:54]}  Qd6 {[%clk 0:02:26]} 16. f4 {[%clk 0:01:31]}  a5 {[%clk 0:02:16]} 17. Qe1 {[%clk 0:01:27]}  a4 {[%clk 0:02:05]} 18. a3 {[%clk 0:01:23]}  Ne4 {[%clk 0:01:58]} 19. Nxe4 {[%clk 0:01:19]}  dxe4 {[%clk 0:01:59]} 20. Nc3 {[%clk 0:01:15]}  f5 {[%clk 0:01:57]} 21. Qh4 {[%clk 0:01:11]}  Bg7 {[%clk 0:01:51]} 22. Rad1 {[%clk 0:01:11]}  Qe6 {[%clk 0:01:35]} 23. Bxg7 {[%clk 0:01:05]}  Kxg7 {[%clk 0:01:35]} 24. Rd2 {[%clk 0:00:57]}  Bc6 {[%clk 0:01:25]} 25. Rfd1 {[%clk 0:00:56]}  Rb8 {[%clk 0:01:21]} 26. Ne2 {[%clk 0:00:27]}  Rxb2 {[%clk 0:01:12]} 27. Nd4 {[%clk 0:00:27]}  Qf6 {[%clk 0:01:13]} 28. Qe1 {[%clk 0:00:19]}  Be8 {[%clk 0:01:05]} 29. Rf2 {[%clk 0:00:18]}  Bf7 {[%clk 0:01:03]} 30. Qc3 {[%clk 0:00:18]}  Rfb8 {[%clk 0:01:01]} 31. Rfd2 {[%clk 0:00:17]}  Rb1 {[%clk 0:00:59]} 32. Qc7 {[%clk 0:00:18]}  Rxd1+ {[%clk 0:00:58]} 33. Rxd1 {[%clk 0:00:18]}  Rb2 {[%clk 0:00:56]} 34. Nc6 {[%clk 0:00:14]}  Rxc2 {[%clk 0:00:48]} 35. Qb8 {[%clk 0:00:04]}  Qxc6 {[%clk 0:00:44]} 36. Qd8 {[%clk 0:00:03]}  Qc3 {[%clk 0:00:35]} 0-1


[Site "https://www.chess.com"]

[Event "Titled Tuesday Blitz February 07 Late 2023"]
[White "Filgueira, Hernan"]
[Black "Van Dael, Siem"]
[WhiteFideId "101770"]
[BlackFideId "1049771"]
[WhiteElo "2283"]
[BlackElo "2319"]
[Result "0-1"]
[Round "10"]
[TimeControl "180+2"]
[Date "2023.02.07"]
[WhiteClock "0:01:17"]
[BlackClock "0:01:19"]

1. e4 {[%clk 0:02:59]}  c5 {[%clk 0:02:58]} 2. Nf3 {[%clk 0:02:58]}  d6 {[%clk 0:02:59]} 3. Bb5+ {[%clk 0:02:57]}  Nd7 {[%clk 0:02:55]} 4. O-O {[%clk 0:02:57]}  a6 {[%clk 0:02:54]} 5. Bd3 {[%clk 0:02:55]}  g6 {[%clk 0:02:52]} 6. c3 {[%clk 0:02:55]}  Bg7 {[%clk 0:02:53]} 7. Bc2 {[%clk 0:02:54]}  e5 {[%clk 0:02:54]} 8. d4 {[%clk 0:02:53]}  Ne7 {[%clk 0:02:53]} 9. a4 {[%clk 0:02:46]}  O-O {[%clk 0:02:51]} 10. Bg5 {[%clk 0:02:41]}  f6 {[%clk 0:02:49]} 11. Be3 {[%clk 0:02:41]}  Nc6 {[%clk 0:02:46]} 12. Nbd2 {[%clk 0:02:35]}  b6 {[%clk 0:02:37]} 13. Nc4 {[%clk 0:02:33]}  Qe7 {[%clk 0:02:21]} 14. dxc5 {[%clk 0:02:31]}  dxc5 {[%clk 0:02:21]} 15. Qd5+ {[%clk 0:02:29]}  Kh8 {[%clk 0:02:17]} 16. Qxc6 {[%clk 0:02:29]}  Rb8 {[%clk 0:02:16]} 17. Qd6 {[%clk 0:02:28]}  Qe8 {[%clk 0:02:16]} 18. Qd2 {[%clk 0:02:25]}  Qe6 {[%clk 0:02:12]} 19. Nd6 {[%clk 0:02:24]}  f5 {[%clk 0:02:08]} 20. Nxc8 {[%clk 0:02:18]}  f4 {[%clk 0:02:08]} 21. Nd6 {[%clk 0:02:14]}  Bh6 {[%clk 0:02:03]} 22. Qd5 {[%clk 0:02:09]}  Qxd5 {[%clk 0:01:55]} 23. exd5 {[%clk 0:02:09]}  fxe3 {[%clk 0:01:56]} 24. fxe3 {[%clk 0:02:06]}  Bxe3+ {[%clk 0:01:57]} 25. Kh1 {[%clk 0:02:06]}  Bf4 {[%clk 0:01:52]} 26. Ne4 {[%clk 0:02:04]}  Rbd8 {[%clk 0:01:50]} 27. g3 {[%clk 0:02:04]}  Bh6 {[%clk 0:01:49]} 28. c4 {[%clk 0:02:04]}  b5 {[%clk 0:01:47]} 29. axb5 {[%clk 0:02:00]}  axb5 {[%clk 0:01:48]} 30. cxb5 {[%clk 0:01:59]}  Nb6 {[%clk 0:01:49]} 31. d6 {[%clk 0:01:59]}  c4 {[%clk 0:01:47]} 32. Ra7 {[%clk 0:01:54]}  Nd5 {[%clk 0:01:43]} 33. Bb1 {[%clk 0:01:49]}  Ne3 {[%clk 0:01:41]} 34. Rf2 {[%clk 0:01:44]}  Ng4 {[%clk 0:01:42]} 35. Kg2 {[%clk 0:01:41]}  Be3 {[%clk 0:01:32]} 36. Re7 {[%clk 0:01:34]}  Bxf2 {[%clk 0:01:27]} 37. Nxf2 {[%clk 0:01:33]}  Ne3+ {[%clk 0:01:27]} 38. Kh3 {[%clk 0:01:30]}  Rxf3 {[%clk 0:01:28]} 39. Ne4 {[%clk 0:01:30]}  Rf5 {[%clk 0:01:21]} 40. g4 {[%clk 0:01:29]}  Rf3+ {[%clk 0:01:21]} 41. Kh4 {[%clk 0:01:25]}  h6 {[%clk 0:01:20]} 42. Ng3 {[%clk 0:01:17]}  Ng2+ {[%clk 0:01:17]} 43. Kh3 {[%clk 0:01:17]}  Nf4+ {[%clk 0:01:18]} 44. Kh4 {[%clk 0:01:17]}  g5# {[%clk 0:01:19]} 0-1


[Site "https://www.chess.com"]

[Event "Titled Tuesday Blitz February 07 Late 2023"]
[White "Brilej, Jaka"]
[Black "Toktomushev, Teimur"]
[WhiteFideId "14618818"]
[BlackFideId "14176726"]
[WhiteElo "2321"]
[BlackElo "2239"]
[Result "0-1"]
[Round "10"]
[TimeControl "180+2"]
[Date "2023.02.07"]
[WhiteClock "0:02:41"]
[BlackClock "0:02:42"]

1. e4 {[%clk 0:03:00]}  c5 {[%clk 0:02:59]} 2. Nf3 {[%clk 0:03:00]}  e6 {[%clk 0:03:00]} 3. Nc3 {[%clk 0:03:00]}  a6 {[%clk 0:02:58]} 4. d4 {[%clk 0:03:00]}  cxd4 {[%clk 0:02:59]} 5. Nxd4 {[%clk 0:03:00]}  b5 {[%clk 0:02:59]} 6. Bd3 {[%clk 0:03:00]}  Bb7 {[%clk 0:03:00]} 7. O-O {[%clk 0:03:00]}  Nc6 {[%clk 0:03:00]} 8. Be3 {[%clk 0:02:58]}  Nf6 {[%clk 0:02:53]} 9. a4 {[%clk 0:02:58]}  b4 {[%clk 0:02:53]} 10. Na2 {[%clk 0:02:57]}  Qc7 {[%clk 0:02:48]} 11. Nxc6 {[%clk 0:02:54]}  Bxc6 {[%clk 0:02:48]} 12. Nxb4 {[%clk 0:02:54]}  Bxb4 {[%clk 0:02:48]} 13. f3 {[%clk 0:02:43]}  Bd6 {[%clk 0:02:42]} 14. f4 {[%clk 0:02:41]} 0-1


[Site "https://www.chess.com"]

[Event "Titled Tuesday Blitz February 07 Late 2023"]
[White "Marczuk, Dominik"]
[Black "Prem, Pranav"]
[WhiteFideId "1111264"]
[BlackFideId "30901057"]
[WhiteElo "2253"]
[BlackElo "2061"]
[Result "0-1"]
[Round "10"]
[TimeControl "180+2"]
[Date "2023.02.07"]
[WhiteClock "0:00:02"]
[BlackClock "0:00:09"]

1. e4 {[%clk 0:02:56]}  c5 {[%clk 0:02:58]} 2. Nf3 {[%clk 0:02:56]}  d6 {[%clk 0:02:57]} 3. d4 {[%clk 0:02:57]}  cxd4 {[%clk 0:02:58]} 4. Nxd4 {[%clk 0:02:57]}  Nf6 {[%clk 0:02:56]} 5. Nc3 {[%clk 0:02:58]}  a6 {[%clk 0:02:56]} 6. f3 {[%clk 0:02:57]}  e5 {[%clk 0:02:51]} 7. Nb3 {[%clk 0:02:57]}  Be6 {[%clk 0:02:48]} 8. Be3 {[%clk 0:02:57]}  Be7 {[%clk 0:02:46]} 9. Qd2 {[%clk 0:02:57]}  Nbd7 {[%clk 0:02:42]} 10. g4 {[%clk 0:02:55]}  b5 {[%clk 0:02:38]} 11. O-O-O {[%clk 0:02:46]}  Nb6 {[%clk 0:02:35]} 12. g5 {[%clk 0:02:45]}  Nfd7 {[%clk 0:02:34]} 13. Nd5 {[%clk 0:02:15]}  Bxd5 {[%clk 0:02:26]} 14. exd5 {[%clk 0:02:15]}  Rc8 {[%clk 0:02:20]} 15. Kb1 {[%clk 0:02:09]}  Nc4 {[%clk 0:02:07]} 16. Bxc4 {[%clk 0:02:08]}  bxc4 {[%clk 0:02:08]} 17. Na5 {[%clk 0:02:07]}  c3 {[%clk 0:02:03]} 18. Nc6 {[%clk 0:01:51]}  Rxc6 {[%clk 0:01:32]} 19. bxc3 {[%clk 0:01:28]}  Rc4 {[%clk 0:01:24]} 20. h4 {[%clk 0:01:19]}  Qc7 {[%clk 0:01:21]} 21. h5 {[%clk 0:01:17]}  Nb6 {[%clk 0:00:32]} 22. g6 {[%clk 0:01:16]}  Na4 {[%clk 0:00:21]} 23. gxf7+ {[%clk 0:01:16]}  Kf8 {[%clk 0:00:21]} 24. Ka1 {[%clk 0:01:12]}  Nxc3 {[%clk 0:00:21]} 25. h6 {[%clk 0:00:56]}  g6 {[%clk 0:00:22]} 26. Rb1 {[%clk 0:00:24]}  Nxb1 {[%clk 0:00:13]} 27. Rxb1 {[%clk 0:00:25]}  Kxf7 {[%clk 0:00:13]} 28. f4 {[%clk 0:00:24]}  Bf6 {[%clk 0:00:14]} 29. c3 {[%clk 0:00:14]}  exf4 {[%clk 0:00:12]} 30. Bd4 {[%clk 0:00:14]}  Rxd4 {[%clk 0:00:07]} 31. cxd4 {[%clk 0:00:15]}  Rb8 {[%clk 0:00:06]} 32. Qxf4 {[%clk 0:00:13]}  Rxb1+ {[%clk 0:00:05]} 33. Kxb1 {[%clk 0:00:12]}  Qb7+ {[%clk 0:00:06]} 34. Kc2 {[%clk 0:00:12]}  Qxd5 {[%clk 0:00:06]} 35. Qg4 {[%clk 0:00:10]}  Qxd4 {[%clk 0:00:05]} 36. Qd7+ {[%clk 0:00:10]}  Be7 {[%clk 0:00:06]} 37. Kb1 {[%clk 0:00:07]}  Qb4+ {[%clk 0:00:06]} 38. Kc2 {[%clk 0:00:08]}  Qc4+ {[%clk 0:00:06]} 39. Kd1 {[%clk 0:00:07]}  Qb5 {[%clk 0:00:07]} 40. Qg4 {[%clk 0:00:06]}  Qd5+ {[%clk 0:00:08]} 41. Kc1 {[%clk 0:00:06]}  Qf5 {[%clk 0:00:08]} 42. Qc4+ {[%clk 0:00:06]}  Qe6 {[%clk 0:00:08]} 43. Qxa6 {[%clk 0:00:06]}  Bg5+ {[%clk 0:00:09]} 44. Kc2 {[%clk 0:00:06]}  Bxh6 {[%clk 0:00:10]} 45. Qb7+ {[%clk 0:00:06]}  Qe7 {[%clk 0:00:10]} 46. Qf3+ {[%clk 0:00:06]}  Qf6 {[%clk 0:00:11]} 47. Qd5+ {[%clk 0:00:07]}  Qe6 {[%clk 0:00:11]} 48. Qb7+ {[%clk 0:00:07]}  Kf6 {[%clk 0:00:12]} 49. Qxh7 {[%clk 0:00:07]}  Bg5 {[%clk 0:00:11]} 50. Qh8+ {[%clk 0:00:07]}  Kf5 {[%clk 0:00:11]} 51. Qf8+ {[%clk 0:00:07]}  Qf6 {[%clk 0:00:12]} 52. Qc8+ {[%clk 0:00:07]}  Kf4 {[%clk 0:00:13]} 53. Qc4+ {[%clk 0:00:07]}  Kg3 {[%clk 0:00:12]} 54. Qd3+ {[%clk 0:00:07]}  Kg4 {[%clk 0:00:11]} 55. Qd1+ {[%clk 0:00:06]}  Kf5 {[%clk 0:00:10]} 56. Qd3+ {[%clk 0:00:06]}  Ke6 {[%clk 0:00:10]} 57. Qc4+ {[%clk 0:00:07]}  d5 {[%clk 0:00:06]} 58. Qc6+ {[%clk 0:00:07]}  Ke5 {[%clk 0:00:07]} 59. Qc7+ {[%clk 0:00:07]}  Ke4 {[%clk 0:00:06]} 60. Qb7 {[%clk 0:00:03]}  Be3 {[%clk 0:00:07]} 61. a4 {[%clk 0:00:01]}  Qf2+ {[%clk 0:00:06]} 62. Kb3 {[%clk 0:00:01]}  Qe1 {[%clk 0:00:06]} 63. Qe7+ {[%clk 0:00:01]}  Kd3 {[%clk 0:00:06]} 64. Qa7 {[%clk 0:00:01]}  Qb1+ {[%clk 0:00:07]} 65. Ka3 {[%clk 0:00:01]}  Bxa7 {[%clk 0:00:07]} 66. a5 {[%clk 0:00:02]}  Bc5+ {[%clk 0:00:08]} 67. Ka4 {[%clk 0:00:02]}  Qb4# {[%clk 0:00:09]} 0-1


[Site "https://www.chess.com"]

[Event "Titled Tuesday Blitz February 07 Late 2023"]
[White "Schekachikhin, Maksim"]
[Black "Bozorov, Makhsum"]
[WhiteFideId "24177830"]
[BlackFideId "14201330"]
[WhiteElo "2371"]
[BlackElo "2145"]
[Result "0-1"]
[Round "10"]
[TimeControl "180+2"]
[Date "2023.02.07"]
[WhiteClock "0:00:20"]
[BlackClock "0:00:17"]

1. Nf3 {[%clk 0:03:00]}  Nf6 {[%clk 0:02:55]} 2. c4 {[%clk 0:03:00]}  g6 {[%clk 0:02:56]} 3. Nc3 {[%clk 0:03:00]}  Bg7 {[%clk 0:02:55]} 4. e4 {[%clk 0:02:59]}  d6 {[%clk 0:02:54]} 5. d4 {[%clk 0:02:59]}  O-O {[%clk 0:02:54]} 6. Be2 {[%clk 0:02:59]}  Bg4 {[%clk 0:02:53]} 7. Be3 {[%clk 0:02:58]}  Nfd7 {[%clk 0:02:53]} 8. Rc1 {[%clk 0:02:56]}  Bxf3 {[%clk 0:02:42]} 9. Bxf3 {[%clk 0:02:55]}  e5 {[%clk 0:02:43]} 10. d5 {[%clk 0:02:55]}  a5 {[%clk 0:02:41]} 11. O-O {[%clk 0:02:53]}  Na6 {[%clk 0:02:41]} 12. b3 {[%clk 0:02:49]}  f5 {[%clk 0:02:42]} 13. a3 {[%clk 0:02:40]}  Bf6 {[%clk 0:02:42]} 14. exf5 {[%clk 0:01:33]}  gxf5 {[%clk 0:02:39]} 15. Be2 {[%clk 0:01:22]}  Bg7 {[%clk 0:02:26]} 16. Nb5 {[%clk 0:01:19]}  f4 {[%clk 0:02:18]} 17. Bd2 {[%clk 0:01:18]}  e4 {[%clk 0:02:18]} 18. f3 {[%clk 0:01:18]}  e3 {[%clk 0:02:14]} 19. Bxa5 {[%clk 0:01:17]}  b6 {[%clk 0:01:52]} 20. Bc3 {[%clk 0:01:17]}  Rf7 {[%clk 0:01:43]} 21. Nd4 {[%clk 0:01:11]}  Qh4 {[%clk 0:01:25]} 22. Ne6 {[%clk 0:01:08]}  Bxc3 {[%clk 0:01:23]} 23. Rxc3 {[%clk 0:01:09]}  Ne5 {[%clk 0:01:18]} 24. Qd4 {[%clk 0:01:03]}  Nc5 {[%clk 0:01:17]} 25. Rxe3 {[%clk 0:00:56]}  Qf6 {[%clk 0:01:03]} 26. Rxe5 {[%clk 0:00:50]}  dxe5 {[%clk 0:00:58]} 27. Qb2 {[%clk 0:00:46]}  Nxe6 {[%clk 0:00:48]} 28. dxe6 {[%clk 0:00:47]}  Qxe6 {[%clk 0:00:48]} 29. Bd3 {[%clk 0:00:47]}  Rd7 {[%clk 0:00:43]} 30. Be4 {[%clk 0:00:47]}  Rad8 {[%clk 0:00:41]} 31. Bd5 {[%clk 0:00:45]}  Rxd5 {[%clk 0:00:40]} 32. cxd5 {[%clk 0:00:46]}  Qxd5 {[%clk 0:00:40]} 33. Re1 {[%clk 0:00:40]}  Qd4+ {[%clk 0:00:20]} 34. Qf2 {[%clk 0:00:27]}  Qxf2+ {[%clk 0:00:19]} 35. Kxf2 {[%clk 0:00:26]}  Rd3 {[%clk 0:00:19]} 36. Rxe5 {[%clk 0:00:26]}  Rxb3 {[%clk 0:00:19]} 37. Re7 {[%clk 0:00:24]}  c5 {[%clk 0:00:18]} 38. Rb7 {[%clk 0:00:21]}  Rb2+ {[%clk 0:00:18]} 39. Kf1 {[%clk 0:00:21]}  c4 {[%clk 0:00:18]} 40. g3 {[%clk 0:00:21]}  c3 {[%clk 0:00:17]} 41. Rc7 {[%clk 0:00:20]}  c2 {[%clk 0:00:17]} 0-1


[Site "https://www.chess.com"]

[Event "Titled Tuesday Blitz February 07 Late 2023"]
[White "Sarkar, Justin"]
[Black "TheKnightOfBosnia"]
[WhiteFideId "2010011"]
[WhiteElo "2309"]
[BlackElo "2526"]
[Result "0-1"]
[Round "10"]
[TimeControl "180+2"]
[Date "2023.02.07"]
[WhiteClock "0:00:01"]
[BlackClock "0:00:16"]

1. d4 {[%clk 0:02:47]}  Nf6 {[%clk 0:03:00]} 2. c4 {[%clk 0:02:46]}  e6 {[%clk 0:03:01]} 3. Nc3 {[%clk 0:02:44]}  d5 {[%clk 0:03:00]} 4. Bg5 {[%clk 0:02:42]}  Be7 {[%clk 0:03:00]} 5. e3 {[%clk 0:02:41]}  O-O {[%clk 0:03:00]} 6. Nf3 {[%clk 0:02:39]}  Nbd7 {[%clk 0:02:58]} 7. Rc1 {[%clk 0:02:31]}  a6 {[%clk 0:02:56]} 8. Qc2 {[%clk 0:02:22]}  dxc4 {[%clk 0:02:53]} 9. Bxc4 {[%clk 0:02:21]}  b5 {[%clk 0:02:53]} 10. Bd3 {[%clk 0:02:20]}  Bb7 {[%clk 0:02:53]} 11. a4 {[%clk 0:02:06]}  b4 {[%clk 0:02:45]} 12. Ne4 {[%clk 0:01:57]}  Nxe4 {[%clk 0:02:37]} 13. Bxe7 {[%clk 0:01:52]}  Qxe7 {[%clk 0:02:38]} 14. Bxe4 {[%clk 0:01:52]}  Bxe4 {[%clk 0:02:39]} 15. Qxe4 {[%clk 0:01:52]}  c5 {[%clk 0:02:34]} 16. O-O {[%clk 0:01:48]}  Nf6 {[%clk 0:02:27]} 17. Qc2 {[%clk 0:01:42]}  cxd4 {[%clk 0:02:26]} 18. Nxd4 {[%clk 0:01:42]}  Qd7 {[%clk 0:02:22]} 19. Qc6 {[%clk 0:01:29]}  Rfc8 {[%clk 0:02:17]} 20. Qxd7 {[%clk 0:01:25]}  Nxd7 {[%clk 0:02:18]} 21. Nc6 {[%clk 0:01:24]}  Kf8 {[%clk 0:02:05]} 22. Nxb4 {[%clk 0:01:23]}  Rcb8 {[%clk 0:02:04]} 23. Nd3 {[%clk 0:01:17]}  Rb3 {[%clk 0:02:03]} 24. Rfd1 {[%clk 0:01:15]}  Nf6 {[%clk 0:01:55]} 25. Kf1 {[%clk 0:01:02]}  Rd8 {[%clk 0:01:52]} 26. Ke2 {[%clk 0:00:37]}  g6 {[%clk 0:01:52]} 27. Rc3 {[%clk 0:00:34]}  Rxc3 {[%clk 0:01:46]} 28. bxc3 {[%clk 0:00:34]}  Rc8 {[%clk 0:01:46]} 29. Rc1 {[%clk 0:00:32]}  Nd5 {[%clk 0:01:27]} 30. c4 {[%clk 0:00:31]}  Nb6 {[%clk 0:01:27]} 31. c5 {[%clk 0:00:29]}  Nxa4 {[%clk 0:01:23]} 32. Ra1 {[%clk 0:00:26]}  Nc3+ {[%clk 0:01:19]} 33. Kd2 {[%clk 0:00:25]}  Ne4+ {[%clk 0:01:20]} 34. Ke2 {[%clk 0:00:24]}  Rc6 {[%clk 0:01:12]} 35. f3 {[%clk 0:00:23]}  Nc3+ {[%clk 0:01:11]} 36. Kd2 {[%clk 0:00:22]}  Nd5 {[%clk 0:01:10]} 37. e4 {[%clk 0:00:20]}  Nc7 {[%clk 0:01:10]} 38. Ra5 {[%clk 0:00:20]}  Nb5 {[%clk 0:01:03]} 39. Ne5 {[%clk 0:00:15]}  Rc7 {[%clk 0:01:01]} 40. Rxa6 {[%clk 0:00:14]}  f6 {[%clk 0:00:54]} 41. Nd3 {[%clk 0:00:13]}  Ke7 {[%clk 0:00:52]} 42. e5 {[%clk 0:00:12]}  f5 {[%clk 0:00:50]} 43. Nf4 {[%clk 0:00:11]}  Nd4 {[%clk 0:00:48]} 44. Rd6 {[%clk 0:00:09]}  Nb3+ {[%clk 0:00:47]} 45. Ke3 {[%clk 0:00:08]}  Nxc5 {[%clk 0:00:48]} 46. Kd4 {[%clk 0:00:06]}  g5 {[%clk 0:00:46]} 47. Nd3 {[%clk 0:00:04]}  Nxd3 {[%clk 0:00:42]} 48. Kxd3 {[%clk 0:00:04]}  Rc5 {[%clk 0:00:42]} 49. Ra6 {[%clk 0:00:03]}  Rd5+ {[%clk 0:00:40]} 50. Kc4 {[%clk 0:00:02]}  Kf7 {[%clk 0:00:31]} 51. Ra7+ {[%clk 0:00:01]}  Kg6 {[%clk 0:00:31]} 52. Re7 {[%clk 0:00:02]}  Rxe5 {[%clk 0:00:31]} 53. Kd4 {[%clk 0:00:02]}  Re2 {[%clk 0:00:30]} 54. g4 {[%clk 0:00:03]}  h6 {[%clk 0:00:25]} 55. Re8 {[%clk 0:00:02]}  Kf6 {[%clk 0:00:18]} 56. Rh8 {[%clk 0:00:02]}  Rxh2 {[%clk 0:00:18]} 57. gxf5 {[%clk 0:00:01]}  exf5 {[%clk 0:00:17]} 58. Ke3 {[%clk 0:00:01]}  f4+ {[%clk 0:00:17]} 59. Ke4 {[%clk 0:00:01]}  Re2+ {[%clk 0:00:16]} 60. Kd4 {[%clk 0:00:01]}  Kg7 {[%clk 0:00:16]} 0-1


[Site "https://www.chess.com"]

[Event "Titled Tuesday Blitz February 07 Late 2023"]
[White "Harish, Neeraj"]
[Black "Kochetov, Andrey"]
[WhiteFideId "30958130"]
[BlackFideId "24130532"]
[WhiteElo "2232"]
[BlackElo "2165"]
[Result "0-1"]
[Round "10"]
[TimeControl "180+2"]
[Date "2023.02.07"]
[WhiteClock "0:01:46"]
[BlackClock "0:02:31"]

1. e4 {[%clk 0:03:00]}  d5 {[%clk 0:02:58]} 2. exd5 {[%clk 0:03:00]}  Qxd5 {[%clk 0:02:59]} 3. Nc3 {[%clk 0:02:59]}  Qa5 {[%clk 0:02:59]} 4. d4 {[%clk 0:02:56]}  c6 {[%clk 0:02:59]} 5. Nf3 {[%clk 0:02:56]}  Nf6 {[%clk 0:02:59]} 6. Bd3 {[%clk 0:02:42]}  Bg4 {[%clk 0:02:57]} 7. h3 {[%clk 0:02:40]}  Bh5 {[%clk 0:02:57]} 8. g4 {[%clk 0:02:31]}  Bg6 {[%clk 0:02:57]} 9. Ne5 {[%clk 0:02:28]}  e6 {[%clk 0:02:54]} 10. Bxg6 {[%clk 0:02:08]}  hxg6 {[%clk 0:02:53]} 11. Bd2 {[%clk 0:02:07]}  Qc7 {[%clk 0:02:44]} 12. Qe2 {[%clk 0:02:06]}  Nbd7 {[%clk 0:02:41]} 13. O-O-O {[%clk 0:02:02]}  Nxe5 {[%clk 0:02:36]} 14. dxe5 {[%clk 0:02:01]}  Nd5 {[%clk 0:02:36]} 15. Nxd5 {[%clk 0:01:54]}  cxd5 {[%clk 0:02:36]} 16. Kb1 {[%clk 0:01:50]}  Rc8 {[%clk 0:02:31]} 17. Kc1 {[%clk 0:01:46]} 0-1


[Site "https://www.chess.com"]

[Event "Titled Tuesday Blitz February 07 Late 2023"]
[White "Mesa Cruz, Juan Carlos"]
[Black "Pakleza, Zbigniew"]
[WhiteFideId "6423400"]
[BlackFideId "1119290"]
[WhiteElo "2122"]
[BlackElo "2494"]
[Result "0-1"]
[Round "10"]
[TimeControl "180+2"]
[Date "2023.02.07"]
[WhiteClock "0:00:02"]
[BlackClock "0:00:04"]

1. e4 {[%clk 0:03:00]}  d5 {[%clk 0:02:58]} 2. exd5 {[%clk 0:02:53]}  Nf6 {[%clk 0:02:59]} 3. Bb5+ {[%clk 0:02:47]}  Bd7 {[%clk 0:02:58]} 4. Bc4 {[%clk 0:02:46]}  b5 {[%clk 0:02:58]} 5. Bb3 {[%clk 0:02:38]}  Bg4 {[%clk 0:02:57]} 6. f3 {[%clk 0:02:20]}  Bc8 {[%clk 0:02:57]} 7. Qe2 {[%clk 0:02:14]}  a6 {[%clk 0:02:54]} 8. a4 {[%clk 0:02:12]}  b4 {[%clk 0:02:45]} 9. a5 {[%clk 0:02:12]}  Nxd5 {[%clk 0:02:44]} 10. d3 {[%clk 0:02:10]}  e6 {[%clk 0:02:41]} 11. Nd2 {[%clk 0:02:09]}  Be7 {[%clk 0:02:40]} 12. Ne4 {[%clk 0:02:08]}  O-O {[%clk 0:02:40]} 13. Bd2 {[%clk 0:02:08]}  Nd7 {[%clk 0:02:18]} 14. Nh3 {[%clk 0:02:07]}  Nc5 {[%clk 0:02:14]} 15. Nxc5 {[%clk 0:02:05]}  Bxc5 {[%clk 0:02:15]} 16. Nf4 {[%clk 0:02:02]}  Nxf4 {[%clk 0:02:07]} 17. Bxf4 {[%clk 0:02:01]}  Qf6 {[%clk 0:02:08]} 18. Be5 {[%clk 0:01:59]}  Qh4+ {[%clk 0:02:00]} 19. g3 {[%clk 0:01:57]}  Qh6 {[%clk 0:01:59]} 20. Bf4 {[%clk 0:01:53]}  Qg6 {[%clk 0:01:53]} 21. Bxc7 {[%clk 0:01:49]}  Bb7 {[%clk 0:01:52]} 22. O-O-O {[%clk 0:01:47]}  Rac8 {[%clk 0:01:47]} 23. Be5 {[%clk 0:01:44]}  Rfd8 {[%clk 0:01:38]} 24. Kb1 {[%clk 0:01:24]}  h6 {[%clk 0:01:34]} 25. g4 {[%clk 0:01:16]}  Bd5 {[%clk 0:01:31]} 26. Bxd5 {[%clk 0:01:09]}  Rxd5 {[%clk 0:01:31]} 27. h4 {[%clk 0:01:05]}  Bf8 {[%clk 0:01:21]} 28. h5 {[%clk 0:00:55]}  Qg5 {[%clk 0:01:18]} 29. f4 {[%clk 0:00:54]}  Qd8 {[%clk 0:01:15]} 30. g5 {[%clk 0:00:51]}  hxg5 {[%clk 0:00:59]} 31. fxg5 {[%clk 0:00:46]}  Qxa5 {[%clk 0:00:54]} 32. d4 {[%clk 0:00:39]}  Qa4 {[%clk 0:00:39]} 33. h6 {[%clk 0:00:11]}  Ra5 {[%clk 0:00:38]} 34. Kc1 {[%clk 0:00:11]}  Qa1+ {[%clk 0:00:34]} 35. Kd2 {[%clk 0:00:11]}  Qxb2 {[%clk 0:00:35]} 36. Rc1 {[%clk 0:00:09]}  b3 {[%clk 0:00:15]} 37. Qd3 {[%clk 0:00:03]}  Rxe5 {[%clk 0:00:10]} 38. hxg7 {[%clk 0:00:03]}  Bxg7 {[%clk 0:00:10]} 39. dxe5 {[%clk 0:00:03]}  Qxe5 {[%clk 0:00:07]} 40. Qh7+ {[%clk 0:00:02]}  Kf8 {[%clk 0:00:07]} 41. c3 {[%clk 0:00:02]}  Rd8+ {[%clk 0:00:04]} 0-1


[Site "https://www.chess.com"]